bitfinex/quotes_SOLUSD_20220103
["timestamp","ask_amount","ask_price","bid_price","bid_amount"]
[1641227494141,30.58716247,169.91,169.79,23.64431596]
[1641227494339,1.60996583,169.88,169.79,24.14431596]
[1641227494538,8.8339,169.86,169.79,24.40431596]
[1641227494763,1.86996583,169.88,169.79,24.40431596]
[1641227494764,1.60996583,169.88,169.79,24.40431596]
[1641227495341,1.60996583,169.88,169.79,24.14431596]
[1641227495539,1.86996583,169.88,169.79,24.14431596]
[1641227495740,9.0927,169.88,169.79,24.14431596]
[1641227495940,9.0927,169.88,169.73,10.1374]
[1641227495941,10.51939368,169.88,169.73,1.3043]
[1641227496140,18.04939368,169.88,169.72,76.9669]
[1641227496340,19.65935951,169.88,169.72,77.4669]
[1641227496940,1.60996583,169.85,169.73,26.38511515]
[1641227497140,8.8352,169.83,169.73,26.38511515]
[1641227497340,1.60996583,169.85,169.73,26.88511515]
[1641227497540,1.60996583,169.85,169.73,33.98811515]
[1641227497741,1.86996583,169.85,169.73,33.98811515]
[1641227498139,8.8346,169.84,169.73,33.98811515]
[1641227498342,1.60996583,169.86,169.74,7.03]
[1641227498745,1.60996583,169.88,169.74,7.53]
[1641227498945,1.60996583,169.88,169.74,7.79]
[1641227499246,4.35771044,169.88,169.74,7.79]
[1641227499446,4.35771044,169.88,169.76,3.00655817]
[1641227499846,2.74774461,169.88,169.77,19.88085196]
[1641227500046,31.05566583,169.9,169.77,19.88085196]
[1641227500447,8.8328,169.88,169.77,20.38085196]
[1641227500647,10.44276583,169.88,169.77,20.38085196]
[1641227500848,10.44276583,169.88,169.77,20.64085196]
[1641227501648,8.8328,169.88,169.77,20.64085196]
[1641227503785,10.44166583,169.9,169.77,20.64085196]
[1641227503986,10.70166583,169.9,169.77,20.64085196]
[1641227504390,10.70166583,169.9,169.77,20.38085196]
[1641227504585,9.0917,169.9,169.77,21.72985196]
[1641227505385,9.0917,169.9,169.77,30.56095196]
[1641227505587,9.0917,169.9,169.77,30.82095196]
[1641227506586,9.0917,169.9,169.77,21.98985196]
[1641227508690,8.8317,169.9,169.77,21.98985196]
[1641227509091,8.8317,169.9,169.77,21.72985196]
[1641227509991,9.0917,169.9,169.77,21.72985196]
[1641227510393,9.0917,169.9,169.77,21.98985196]
[1641227510994,8.63996583,169.92,169.77,21.98985196]
[1641227511194,17.47066583,169.92,169.77,29.01985196]
[1641227511396,17.47066583,169.92,169.77,37.85115196]
[1641227511996,7.03,169.92,169.77,37.85115196]
[1641227512195,1.60996583,169.93,169.77,37.85115196]
[1641227512396,1.60996583,169.93,169.79,2.21502725]
[1641227512695,13.94655414,169.94,169.83,26.00921402]
[1641227512895,13.94655414,169.94,169.83,33.11621402]
[1641227513095,13.94655414,169.94,169.83,33.37621402]
[1641227513296,5.11685414,169.94,169.83,33.37621402]
[1641227514499,5.11685414,169.94,169.83,42.20451402]
[1641227514697,5.11685414,169.94,169.83,40.14621402]
[1641227515096,5.11685414,169.94,169.83,33.11621402]
[1641227515295,5.11685414,169.94,169.83,33.53921402]
[1641227515696,5.11685414,169.94,169.83,42.36751402]
[1641227516398,5.11685414,169.94,169.83,26.50921402]
[1641227516799,14.70615414,169.94,169.83,26.50921402]
[1641227517001,14.20615414,169.94,169.83,26.50921402]
[1641227517199,13.94615414,169.94,169.83,26.50921402]
[1641227517400,14.20615414,169.94,169.83,26.50921402]
[1641227518000,13.94615414,169.94,169.83,26.50921402]
[1641227519504,14.20615414,169.94,169.83,26.50921402]
[1641227519903,13.94615414,169.94,169.83,26.50921402]
[1641227520103,13.94615414,169.94,169.83,26.76921402]
[1641227520305,15.55611997,169.94,169.83,26.76921402]
[1641227523039,6.72681997,169.94,169.83,26.76921402]
[1641227523239,5.11685414,169.94,169.83,26.76921402]
[1641227524542,5.11685414,169.94,169.83,35.59781402]
[1641227525140,5.11685414,169.94,169.83,49.98681402]
[1641227525541,5.11685414,169.94,169.84,59.04]
[1641227525743,5.11685414,169.94,169.89,8.8246]
[1641227525942,5.11685414,169.94,169.9,22.34294087]
[1641227526340,5.11685414,169.94,169.9,23.10294087]
[1641227526944,1.60996583,169.99,169.91,7.03]
[1641227527348,1.60996583,169.99,169.91,7.79]
[1641227527742,1.60996583,170.01,169.91,7.79]
[1641227527943,1.60996583,170.01,169.96,8.8219]
[1641227528142,1.60996583,170.01,169.97,2.50839377]
[1641227528347,1.60996583,170.01,169.97,3.00839377]
[1641227528544,100.73,170.13,169.97,3.00839377]
[1641227528545,1.60996583,170.06,169.97,3.26839377]
[1641227528744,1.60996583,170.06,169.98,28.47979871]
[1641227528943,1.60996583,170.06,170.0,8.8203]
[1641227529147,1.60996583,170.06,170.01,2.1646684]
[1641227529344,1.60996583,170.06,170.01,2.6646684]
[1641227529545,1.60996583,170.1,170.01,2.9246684]
[1641227529944,1.60996583,170.1,170.02,19.88085196]
[1641227530346,1.60996583,170.08,170.02,20.64085196]
[1641227530547,0.00996583,170.08,170.02,20.64085196]
[1641227530846,3.28053353,170.11,170.04,2.21829802]
[1641227531046,3.28053353,170.11,170.05,7.03]
[1641227531244,3.28053353,170.11,170.05,8.45669368]
[1641227531445,3.28053353,170.11,170.09,2.20297078]
[1641227531744,3.28053353,170.14,170.1,1.96780003]
[1641227531944,3.28053353,170.14,170.1,2.46780003]
[1641227532149,3.28053353,170.14,170.1,9.10380003]
[1641227532747,3.28053353,170.19,170.1,9.10380003]
[1641227533044,3.28053353,170.19,170.1,2.72780003]
[1641227533644,4.57041569,170.2,170.1,1.96780003]
[1641227534045,8.8175,170.17,170.1,1.96780003]
[1641227534446,8.8175,170.17,170.1,4.53043685]
[1641227534645,12.09803353,170.17,170.1,4.53043685]
[1641227535047,12.09803353,170.17,170.1,4.79043685]
[1641227535345,12.09803353,170.17,170.1,7.10642185]
[1641227535549,12.09803353,170.17,170.1,7.60642185]
[1641227535746,8.8175,170.17,170.1,7.60642185]
[1641227535948,32.67183353,170.21,170.1,7.10642185]
[1641227536348,33.17183353,170.21,170.1,7.10642185]
[1641227536947,32.67183353,170.21,170.1,7.60642185]
[1641227537548,8.817,170.18,170.1,7.34642185]
[1641227537948,8.817,170.18,170.1,6.84642185]
[1641227538547,10.31053353,170.22,170.1,6.84642185]
[1641227538748,10.31053353,170.22,170.1,7.34642185]
[1641227538948,3.28053353,170.22,170.1,6.84642185]
[1641227539348,3.28053353,170.22,170.1,7.34642185]
[1641227539748,4.04053353,170.22,170.1,7.34642185]
[1641227539954,8.8162,170.2,170.1,7.34642185]
[1641227540350,8.8162,170.2,170.1,7.60642185]
[1641227541550,8.8151,170.22,170.1,23.45202185]
[1641227544153,8.8151,170.22,170.1,24.87871553]
[1641227544552,8.814,170.24,170.1,24.87871553]
[1641227544751,8.814,170.24,170.13,8.8139]
[1641227544951,8.814,170.24,170.14,2.28939562]
[1641227545154,8.814,170.24,170.14,22.17024758]
[1641227545351,8.814,170.24,170.14,22.93024758]
[1641227546554,8.814,170.24,170.14,39.27894758]
[1641227548155,8.814,170.24,170.14,39.01894758]
[1641227549458,8.814,170.24,170.14,39.27894758]
[1641227549958,8.813,170.26,170.14,46.30894758]
[1641227550558,8.813,170.26,170.14,47.73564126]
[1641227551758,8.8119,170.27,170.14,47.73564126]
[1641227551959,9.0325,170.28,170.14,47.73564126]
[1641227552162,9.0325,170.28,170.14,122.14504126]
[1641227553169,17.844,170.28,170.18,8.8118]
[1641227553364,17.844,170.28,170.19,2.46793056]
[1641227553564,17.844,170.28,170.19,2.72793056]
[1641227553766,17.844,170.28,170.19,3.22793056]
[1641227553965,17.844,170.28,170.2,28.47979871]
[1641227554363,17.844,170.28,170.2,29.23979871]
[1641227554565,17.844,170.28,170.2,28.73979871]
[1641227555467,17.844,170.28,170.2,0.26]
[1641227555666,17.844,170.28,170.17,1.7457]
[1641227555869,18.604,170.28,170.12,7.03]
[1641227556080,7.03,170.27,170.16,0.5]
[1641227556369,8.8164,170.22,170.16,0.5]
[1641227556769,8.8164,170.22,170.13,31.01182998]
[1641227556973,8.8164,170.22,170.13,31.51182998]
[1641227557570,8.8164,170.22,170.13,29.23212902]
[1641227557972,8.8164,170.22,170.13,29.49212902]
[1641227558773,8.8164,170.22,170.13,31.80811502]
[1641227559372,9.3164,170.22,170.13,31.80811502]
[1641227559573,8.8164,170.22,170.13,31.80811502]
[1641227559771,8.8164,170.22,170.13,3.075986]
[1641227559975,16.3464,170.22,170.13,2.315986]
[1641227560175,16.6064,170.22,170.13,2.315986]
[1641227560372,16.6064,170.22,170.13,1.815986]
[1641227562296,16.6064,170.22,170.13,2.075986]
[1641227562501,16.3464,170.22,170.13,2.075986]
[1641227563298,15.8464,170.22,170.13,2.075986]
[1641227563698,25.0283,170.22,170.13,1.815986]
[1641227564900,25.5283,170.22,170.13,1.815986]
[1641227565800,25.5283,170.22,170.13,23.97573479]
[1641227566400,25.5283,170.22,170.14,2.68597177]
[1641227566602,25.5283,170.22,170.13,23.97573479]
[1641227566603,25.0283,170.22,170.13,23.97573479]
[1641227566801,24.5283,170.22,170.13,23.97573479]
[1641227567000,25.0283,170.22,170.13,24.47573479]
[1641227567602,24.7683,170.22,170.13,24.47573479]
[1641227567802,24.7683,170.22,170.13,23.97573479]
[1641227568002,24.7683,170.22,170.13,24.23573479]
[1641227568207,24.7683,170.22,170.13,1.815986]
[1641227568603,24.7683,170.22,170.13,2.315986]
[1641227568806,24.7683,170.22,170.13,1.815986]
[1641227569004,24.7683,170.22,170.13,2.315986]
[1641227569204,24.7683,170.22,170.14,32.28379791]
[1641227569403,24.2683,170.22,170.14,32.28379791]
[1641227569603,24.7683,170.22,170.14,32.54379791]
[1641227570205,24.2683,170.22,170.14,32.54379791]
[1641227570406,7.03,170.25,170.14,33.04379791]
[1641227570604,8.8129,170.25,170.14,33.04379791]
[1641227570807,133.38893353,170.29,170.14,34.47049159]
[1641227570808,96.98053353,170.29,170.14,34.47049159]
[1641227571005,3.28053353,170.29,170.15,7.03]
[1641227571205,7.03,170.32,170.15,7.03]
[1641227571408,7.03,170.32,170.22,8.8108]
[1641227571605,7.03,170.32,170.17,6.487]
[1641227571806,7.53,170.32,170.18,0.76]
[1641227572004,1.42669368,170.31,170.18,0.76]
[1641227572205,8.45669368,170.31,170.18,0.76]
[1641227572404,7.53,170.31,170.13,7.79]
[1641227572604,8.8129,170.26,170.14,32.19282699]
[1641227573005,78.3603,170.3,170.15,7.03]
[1641227573305,78.3603,170.3,170.16,77.4554]
[1641227573509,78.3603,170.3,170.16,84.7454]
[1641227573704,78.3603,170.3,170.16,85.2454]
[1641227573904,8.8118,170.28,170.2,8.8118]
[1641227574106,8.8118,170.28,170.2,0.26]
[1641227574305,8.8118,170.28,170.21,3.01405281]
[1641227574505,8.8118,170.28,170.21,3.27405281]
[1641227574709,8.8118,170.28,170.21,3.77405281]
[1641227575106,8.8118,170.28,170.22,18.51715949]
[1641227575505,8.8118,170.28,170.22,18.77715949]
[1641227575705,8.8118,170.28,170.22,19.27715949]
[1641227576005,8.8118,170.28,170.22,21.09314549]
[1641227576406,8.8118,170.28,170.22,29.90414549]
[1641227576606,8.8118,170.28,170.22,21.09314549]
[1641227583819,8.8118,170.28,170.22,2.575986]
[1641227584014,9.0718,170.28,170.22,2.315986]
[1641227584815,20.87968498,170.27,170.22,2.315986]
[1641227585018,8.815,170.25,170.22,2.315986]
[1641227585217,1.06439994,170.24,170.22,2.315986]
[1641227585917,1.06439994,170.24,170.11,7.03]
[1641227586118,8.8165,170.19,170.12,82.4706]
[1641227586321,0.76,170.24,170.1,1.2869]
[1641227586517,0.26,170.24,170.1,1.2869]
[1641227586722,7.60966433,170.22,170.1,1.2869]
[1641227586923,8.10966433,170.22,170.11,2.46363948]
[1641227587123,8.36966433,170.22,170.11,2.46363948]
[1641227587525,8.8178,170.16,170.11,2.72363948]
[1641227587724,8.8178,170.16,170.09,22.65621214]
[1641227587924,8.8178,170.16,170.09,23.15621214]
[1641227588756,8.8178,170.16,170.1,2.97345539]
[1641227589357,8.8178,170.16,170.1,3.47345539]
[1641227589559,8.8178,170.16,170.1,2.97345539]
[1641227590059,8.8178,170.16,170.1,3.23345539]
[1641227590660,8.8178,170.16,170.1,5.54944139]
[1641227593366,8.8178,170.16,170.1,2.575986]
[1641227596470,13.80157376,170.16,170.1,2.575986]
[1641227596673,13.30157376,170.16,170.1,2.315986]
[1641227596873,13.80157376,170.16,170.1,2.315986]
[1641227597272,8.8178,170.16,170.1,2.315986]
[1641227597875,8.8178,170.16,170.1,2.815986]
[1641227598274,8.8178,170.16,170.11,31.14943911]
[1641227598473,8.8178,170.16,170.11,31.90943911]
[1641227598674,8.8171,170.18,170.11,31.90943911]
[1641227600076,8.8171,170.18,170.11,40.72603911]
[1641227600278,8.816,170.19,170.11,40.72603911]
[1641227600477,10.31053353,170.26,170.11,40.72603911]
[1641227600678,3.28053353,170.26,170.12,1.3277]
[1641227600878,3.28053353,170.26,170.12,1.8277]
[1641227601079,155.718,170.28,170.12,2.0877]
[1641227601280,82.8842,170.28,170.12,75.8135]
[1641227601681,8.8139,170.23,170.16,8.8138]
[1641227601884,8.8139,170.23,170.17,20.21564073]
[1641227602084,8.8139,170.23,170.17,20.47564073]
[1641227602281,8.8139,170.23,170.17,20.71564073]
[1641227602484,8.8139,170.23,170.17,20.21564073]
[1641227602682,8.8139,170.23,170.17,20.71564073]
[1641227602884,8.8139,170.23,170.17,23.03162673]
[1641227603283,8.8139,170.23,170.17,22.53162673]
[1641227603485,3.28053353,170.3,170.18,7.03]
[1641227603685,3.28053353,170.3,170.18,13.266]
[1641227603887,509.36426416,170.31,170.24,8.8098]
[1641227604085,509.36426416,170.31,170.25,2.6174033]
[1641227604289,509.36426416,170.31,170.25,31.49704868]
[1641227604484,509.36426416,170.31,170.25,32.25704868]
[1641227604883,506.08373063,170.31,170.25,32.25704868]
[1641227605085,506.08373063,170.31,170.25,41.06634868]
[1641227605486,506.08373063,170.31,170.25,40.80634868]
[1641227605685,95.41443602,170.37,170.25,31.49704868]
[1641227605887,22.00193602,170.37,170.25,31.49704868]
[1641227606786,8.8106,170.31,170.25,31.75704868]
[1641227608005,8.8106,170.31,170.25,29.13964538]
[1641227609708,8.8106,170.31,170.25,0.26]
[1641227609914,8.8106,170.31,170.2,2.549]
[1641227609915,9.0706,170.31,170.2,2.549]
[1641227610210,1.42669368,170.3,170.17,2.315986]
[1641227610409,8.8147,170.24,170.17,2.815986]
[1641227610810,8.8147,170.24,170.18,32.19602422]
[1641227611811,8.8135,170.26,170.18,32.69602422]
[1641227612013,8.8135,170.26,170.18,32.95602422]
[1641227612415,8.3135,170.26,170.18,32.95602422]
[1641227613415,8.3135,170.26,170.18,41.76912422]
[1641227613817,8.3135,170.26,170.18,39.4332098]
[1641227614015,8.3135,170.26,170.18,30.6201098]
[1641227614214,8.3135,170.26,170.18,2.815986]
[1641227614417,8.3135,170.26,170.18,2.315986]
[1641227614817,8.8135,170.26,170.18,2.315986]
[1641227615415,9.0735,170.26,170.18,2.315986]
[1641227618116,8.8166,170.22,170.18,2.315986]
[1641227618516,9.5766,170.22,170.18,2.315986]
[1641227618915,21.78217051,170.21,170.18,2.315986]
[1641227619117,1.06439994,170.2,170.18,2.315986]
[1641227619314,8.8174,170.19,170.18,2.315986]
[1641227619716,8.8174,170.19,170.18,5.12554528]
[1641227619916,1.06439994,170.2,170.18,2.315986]
[1641227620124,7.03,170.27,170.19,4.99999998]
[1641227620717,20.18131706,170.26,170.19,4.99999998]
[1641227620917,20.18131706,170.26,170.19,5.25999998]
[1641227621519,8.8145,170.23,170.19,5.25999998]
[1641227622019,8.8145,170.23,170.19,3.29219995]
[1641227622221,8.8145,170.23,170.19,0.26]
[1641227622417,8.8145,170.23,170.18,4.72875448]
[1641227624620,8.8145,170.23,170.18,2.41276848]
[1641227624821,8.8142,170.24,170.18,2.41276848]
[1641227626121,8.8142,170.24,170.18,2.91276848]
[1641227626324,8.8137,170.25,170.18,2.91276848]
[1641227627423,28.99451706,170.26,170.18,11.72596848]
[1641227627824,8.8132,170.26,170.18,11.72596848]
[1641227628029,102.538,170.32,170.18,11.72596848]
[1641227628226,29.3751,170.32,170.18,14.04195348]
[1641227628425,8.8106,170.31,170.18,22.49864716]
[1641227628627,3.28053353,170.34,170.18,22.49864716]
[1641227628826,3.28053353,170.35,170.19,24.95572804]
[1641227629026,3.28053353,170.35,170.26,8.8088]
[1641227629225,3.28053353,170.35,170.27,2.60279493]
[1641227629425,551.66018027,170.36,170.27,2.60279493]
[1641227629628,8.8092,170.34,170.27,2.86279493]
[1641227630231,9.3092,170.34,170.27,2.86279493]
[1641227630732,8.8092,170.34,170.27,2.86279493]
[1641227631639,8.8085,170.35,170.27,11.67129493]
[1641227631836,1.9949,170.38,170.27,12.17129493]
[1641227632837,8.8083,170.36,170.27,12.17129493]
[1641227635870,1.9949,170.38,170.27,12.17129493]
[1641227635871,1.9949,170.38,170.27,13.59798861]
[1641227636271,1.9949,170.38,170.33,8.805]
[1641227636471,1.9949,170.38,170.34,3.00730419]
[1641227636870,1.9949,170.38,170.34,3.76730419]
[1641227638373,1.9949,170.38,170.34,12.57230419]
[1641227642080,1.9949,170.38,170.34,9.305]
[1641227642277,1.9949,170.38,170.3,37.6906]
[1641227642278,1.9949,170.38,170.33,8.8056]
[1641227642480,1.9949,170.38,170.34,2.315986]
[1641227642678,4.40660949,170.37,170.34,2.315986]
[1641227642878,1.06439994,170.36,170.34,2.315986]
[1641227643280,1.56439994,170.36,170.34,2.315986]
[1641227643978,31.8095,170.35,170.34,2.315986]
[1641227644479,8.8095,170.35,170.34,2.315986]
[1641227648084,1.06439994,170.36,170.34,2.315986]
[1641227648285,1.06439994,170.36,170.34,2.575986]
[1641227648485,1.9949,170.38,170.35,4.99999998]
[1641227648687,1.9949,170.38,170.35,3.03219995]
[1641227648886,1.9949,170.38,170.35,0.26]
[1641227649485,1.9949,170.38,170.34,5.4829809]
[1641227649886,1.9949,170.38,170.34,2.575986]
[1641227650089,1.9949,170.38,170.34,2.315986]
[1641227650387,10.8017,170.38,170.34,2.315986]
[1641227650587,10.8017,170.38,170.34,2.575986]
[1641227650788,10.8017,170.38,170.34,2.315986]
[1641227650988,10.8017,170.38,170.34,2.575986]
[1641227651191,10.8017,170.38,170.34,2.315986]
[1641227651989,10.8017,170.38,170.34,2.575986]
[1641227652414,10.8017,170.38,170.34,2.315986]
[1641227652614,10.8017,170.38,170.32,2.26779863]
[1641227652815,11.3017,170.38,170.3,33.35438952]
[1641227653016,11.3017,170.38,170.3,24.54728952]
[1641227653720,11.3017,170.38,170.3,27.12327552]
[1641227653917,11.3017,170.38,170.3,29.3872143]
[1641227654720,11.3017,170.38,170.3,4.57992478]
[1641227656019,11.3017,170.38,170.3,4.83992478]
[1641227656222,11.3017,170.38,170.3,2.315986]
[1641227656419,7.03,170.37,170.3,2.315986]
[1641227656619,8.81,170.34,170.3,2.315986]
[1641227657219,21.01844078,170.33,170.3,2.315986]
[1641227657620,1.06439994,170.32,170.3,2.315986]
[1641227658220,9.87519994,170.32,170.3,2.315986]
[1641227658824,10.37519994,170.32,170.3,2.315986]
[1641227659823,10.63519994,170.32,170.3,2.315986]
[1641227661126,10.37519994,170.32,170.3,2.315986]
[1641227661526,10.63519994,170.32,170.3,2.315986]
[1641227661722,12.2931448,170.32,170.3,2.315986]
[1641227663324,10.37519994,170.32,170.3,2.315986]
[1641227666328,16.63919994,170.32,170.3,2.315986]
[1641227666629,23.66919994,170.32,170.3,2.315986]
[1641227666829,2.315986,170.3,170.16,8.8145]
[1641227667032,7.03,170.29,170.12,9.6611]
[1641227667231,8.8154,170.22,170.12,2.6311]
[1641227667431,15.5834,170.22,170.12,3.1311]
[1641227667830,22.20016792,170.21,170.12,3.1311]
[1641227668032,22.20016792,170.21,170.13,8.8159]
[1641227668230,31.01606792,170.21,170.13,8.8159]
[1641227668432,31.01606792,170.21,170.13,0.5]
[1641227668836,31.27606792,170.21,170.12,0.5]
[1641227669034,31.27606792,170.21,170.11,2.80926241]
[1641227669432,31.77606792,170.21,170.11,2.80926241]
[1641227670734,31.77606792,170.21,170.11,5.12524841]
[1641227671059,9.5759,170.21,170.11,5.38524841]
[1641227671237,9.3159,170.21,170.11,5.38524841]
[1641227671436,8.8159,170.21,170.11,5.88524841]
[1641227672034,8.8149,170.23,170.11,5.88524841]
[1641227672433,8.8149,170.23,170.11,16.12874209]
[1641227673135,15.8439,170.25,170.11,16.12874209]
[1641227674040,8.8139,170.25,170.12,7.03]
[1641227674236,8.68794486,170.29,170.18,8.8131]
[1641227674237,8.8128,170.27,170.18,8.8131]
[1641227674437,8.8128,170.27,170.19,19.16275641]
[1641227674839,8.8128,170.27,170.19,19.92275641]
[1641227675437,8.8128,170.27,170.2,8.8121]
[1641227675838,8.8128,170.27,170.2,9.0721]
[1641227676238,8.8119,170.29,170.2,9.0721]
[1641227677440,8.8119,170.29,170.2,0.26]
[1641227677641,9.0719,170.29,170.2,0.26]
[1641227677842,9.0719,170.29,170.19,28.23545641]
[1641227678241,8.8119,170.29,170.19,28.23545641]
[1641227678640,8.8119,170.29,170.19,28.73545641]
[1641227680747,2.315986,170.3,170.19,28.73545641]
[1641227681150,2.315986,170.3,170.19,35.76545641]
[1641227683852,1.94805,170.2,170.19,37.19215009]
[1641227684154,1.94805,170.2,170.19,42.19215007]
[1641227684755,2.315986,170.3,170.25,8.8092]
[1641227684957,2.315986,170.3,170.26,33.58688761]
[1641227685454,2.315986,170.3,170.26,33.84688761]
[1641227685854,2.315986,170.3,170.26,9.0691]
[1641227686070,2.315986,170.3,170.25,0.5]
[1641227686272,2.315986,170.3,170.22,1.7463]
[1641227686875,2.315986,170.3,170.23,26.63158533]
[1641227687372,2.315986,170.3,170.24,8.8098]
[1641227687573,2.315986,170.3,170.24,9.0698]
[1641227687776,2.315986,170.3,170.24,9.5698]
[1641227690378,2.315986,170.3,170.24,9.0698]
[1641227692780,2.315986,170.3,170.24,8.8098]
[1641227693380,2.315986,170.3,170.24,2.315986]
[1641227694380,11.126486,170.3,170.24,2.315986]
[1641227695882,11.626486,170.3,170.24,2.315986]
[1641227696082,11.886486,170.3,170.24,2.315986]
[1641227696281,7.03,170.29,170.24,2.315986]
[1641227696481,8.814,170.27,170.24,2.315986]
[1641227696681,30.44629994,170.26,170.24,2.315986]
[1641227696882,30.44629994,170.26,170.24,8.6e-05]
[1641227697085,30.70629994,170.26,170.24,8.6e-05]
[1641227697283,31.20629994,170.26,170.24,8.6e-05]
[1641227697481,50.8146,170.25,170.24,8.6e-05]
[1641227697681,57.8446,170.25,170.24,8.6e-05]
[1641227697883,58.6046,170.25,170.24,8.6e-05]
[1641227698081,60.03129368,170.25,170.24,8.6e-05]
[1641227700389,18.03129368,170.25,170.24,8.6e-05]
[1641227702897,46.0,170.24,170.13,3.15708669]
[1641227703098,7.03,170.23,170.13,3.15708669]
[1641227703297,8.8176,170.18,170.13,3.15708669]
[1641227703496,8.8176,170.18,170.13,0.26]
[1641227703898,8.8176,170.18,170.12,1.4954]
[1641227704097,8.8176,170.18,170.12,0.26]
[1641227704498,8.8176,170.18,170.13,3.00858694]
[1641227704899,8.8176,170.18,170.13,3.26858694]
[1641227705300,8.8176,170.18,170.13,3.76858694]
[1641227706003,29.3918,170.21,170.13,3.76858694]
[1641227706206,7.53,170.23,170.13,3.76858694]
[1641227706404,7.03,170.23,170.13,3.76858694]
[1641227706604,7.03,170.23,170.13,12.58438694]
[1641227708407,8.8155,170.2,170.13,12.58438694]
[1641227708608,8.8155,170.2,170.13,14.90037294]
[1641227709509,35.9797478,170.24,170.13,14.90037294]
[1641227710408,8.8149,170.21,170.13,14.90037294]
[1641227711211,8.8149,170.21,170.13,11.631786]
[1641227711410,8.8149,170.21,170.13,2.315986]
[1641227711810,9.0749,170.21,170.13,2.315986]
[1641227712434,9.5749,170.21,170.13,2.315986]
[1641227712634,9.5749,170.21,170.13,2.575986]
[1641227712837,9.0749,170.21,170.13,2.575986]
[1641227713235,9.0749,170.21,170.13,2.315986]
[1641227713437,8.8149,170.21,170.13,2.315986]
[1641227713936,9.3149,170.21,170.13,2.315986]
[1641227714536,9.3149,170.21,170.13,2.575986]
[1641227715838,8.8149,170.21,170.13,11.391986]
[1641227716238,8.8149,170.21,170.13,11.891986]
[1641227716840,8.8144,170.22,170.13,11.891986]
[1641227717241,1.65794486,170.25,170.13,11.891986]
[1641227717642,25.86502878,170.26,170.13,11.891986]
[1641227718041,25.86502878,170.26,170.13,13.227086]
[1641227718244,8.8138,170.24,170.13,13.227086]
[1641227718443,8.8138,170.24,170.13,21.68377968]
[1641227718641,10.30874486,170.28,170.13,21.68377968]
[1641227719041,8.6508,170.28,170.13,21.68377968]
[1641227719543,25.39201531,170.27,170.13,21.68377968]
[1641227719944,8.6508,170.28,170.13,21.68377968]
[1641227720545,8.8128,170.25,170.13,21.68377968]
[1641227721846,8.8128,170.25,170.13,20.257086]
[1641227722046,8.8128,170.25,170.13,19.997086]
[1641227723451,8.8128,170.25,170.13,20.257086]
[1641227724454,24.60405636,170.24,170.13,20.257086]
[1641227725752,24.60405636,170.24,170.13,19.497086]
[1641227725960,33.91755636,170.24,170.13,11.131986]
[1641227726156,1.42669368,170.23,170.13,2.315986]
[1641227726356,1.92669368,170.23,170.13,2.315986]
[1641227726556,2.18669368,170.23,170.13,2.315986]
[1641227726755,1.42669368,170.22,170.13,2.315986]
[1641227726957,8.8167,170.18,170.13,2.315986]
[1641227727156,23.2747,170.18,170.13,2.315986]
[1641227727355,1.42669368,170.17,170.13,2.28073507]
[1641227727555,71.03,170.16,170.0,79.4279]
[1641227727959,8.8221,170.08,170.0,79.4279]
[1641227728159,8.8221,170.08,169.98,2.6789]
[1641227728160,22.4771013,170.07,169.98,2.6789]
[1641227728365,22.4771013,170.07,169.98,12.0019]
[1641227728958,22.4771013,170.07,169.98,9.323]
[1641227729560,8.8236,170.05,169.98,9.323]
[1641227731487,8.8236,170.05,169.98,11.638986]
[1641227732185,8.8236,170.05,169.98,11.898986]
[1641227732788,8.823,170.06,169.98,11.898986]
[1641227734387,8.823,170.06,169.98,11.638986]
[1641227734589,8.823,170.06,169.98,2.815986]
[1641227734788,8.823,170.06,169.98,2.315986]
[1641227734990,9.083,170.06,169.98,2.315986]
[1641227735788,16.113,170.06,169.98,2.315986]
[1641227736089,18.03969368,170.06,169.98,2.315986]
[1641227736291,27.31065477,170.06,169.84,76.7128]
[1641227736490,8.8288,169.95,169.84,76.7128]
[1641227736689,8.8288,169.95,169.84,75.3663]
[1641227736993,8.8288,169.95,169.85,2.79163405]
[1641227737191,6.01224801,169.94,169.86,8.8292]